bitfinex/quotes_ETHUSD_20240928
["timestamp","ask_amount","ask_price","bid_price","bid_amount"]
[1727519890405,2.9538347,2680.4,2680.3,5.93043041]
[1727519890590,2.9538347,2680.4,2680.3,5.12813041]
[1727519890907,2.9538347,2680.4,2680.0,3.73127]
[1727519890908,1.87723138,2680.4,2680.0,3.73127]
[1727519891143,1.56888282,2680.1,2680.0,3.73127]
[1727519891467,1.70995684,2680.1,2680.0,3.73127]
[1727519891792,2.95057564,2680.1,2680.0,3.73127]
[1727519892177,1.38169282,2680.1,2680.0,3.73127]
[1727519892475,0.1426,2680.0,2679.9,3.73148]
[1727519892693,2.24401943,2680.0,2679.9,3.73148]
[1727519892875,2.24401943,2680.0,2679.7,3.73162]
[1727519893079,1.56860682,2679.8,2679.7,3.73162]
[1727519893284,1.31636073,2679.8,2679.7,3.73162]
[1727519893669,1.38049707,2679.8,2679.7,3.73162]
[1727519893907,1.38048533,2679.8,2679.7,3.73162]
[1727519894147,1.31635484,2679.8,2679.7,3.73162]
[1727519896105,0.14032021,2679.8,2679.7,3.73162]
[1727519896306,0.9237933,2679.8,2679.7,3.73162]
[1727519896513,0.14032021,2679.8,2679.7,6.18298637]
[1727519896805,0.78347535,2679.9,2679.8,3.73162]
[1727519897014,0.78347535,2679.9,2679.8,5.29878368]
[1727519897172,0.78347535,2680.0,2679.9,0.8003]
[1727519897380,1.96073392,2680.4,2679.9,0.8003]
[1727519897381,0.78347535,2680.3,2680.1,3.7312]
[1727519897728,0.78347535,2680.3,2680.2,5.29822368]
[1727519900388,0.9236065,2680.3,2680.2,5.29822368]
[1727519906029,0.14013115,2680.3,2680.2,7.65220005]
[1727519906598,0.9236065,2680.3,2680.2,7.65220005]
[1727519907141,0.14013115,2680.3,2680.2,7.65220005]
[1727519907489,0.9236065,2680.3,2680.2,7.65220005]
[1727519907929,0.14013115,2680.3,2680.2,7.65220005]
[1727519908432,0.9236065,2680.3,2680.2,7.65220005]
[1727519908634,0.14013115,2680.3,2680.2,7.65220005]
[1727519909702,0.14013115,2680.3,2680.2,3.73106]
[1727519909894,1.31863463,2680.3,2680.2,3.73106]
[1727519910231,1.52123715,2680.3,2680.2,3.73106]
[1727519910429,1.52123982,2680.3,2680.2,3.73106]
[1727519910837,1.45798128,2680.3,2680.2,3.73106]
[1727519910994,0.28296514,2680.3,2680.2,3.73106]
[1727519911331,1.45794869,2680.3,2680.2,3.73106]
[1727519911636,1.45796551,2680.3,2680.2,3.73106]
[1727519911930,1.45796316,2680.3,2680.2,3.73106]
[1727519913340,1.45794351,2680.3,2680.2,3.73106]
[1727519913640,1.45795142,2680.3,2680.2,3.73106]
[1727519913848,1.45793715,2680.3,2680.2,3.73106]
[1727519914045,0.28296514,2680.3,2680.2,3.73106]
[1727519914344,1.52121462,2680.3,2680.2,3.73106]
[1727519914907,1.45792885,2680.3,2680.2,3.73106]
[1727519915441,2.01968616,2680.3,2680.2,3.73106]
[1727519915626,3.58634692,2680.3,2680.1,3.73113]
[1727519915830,2.80489487,2680.2,2680.1,3.73113]
[1727519916026,1.56665785,2680.2,2680.1,3.73113]
[1727519916204,2.94530587,2680.2,2680.1,3.73113]
[1727519916405,2.94530587,2680.2,2680.1,3.7312]
[1727519917451,1.37864802,2680.2,2680.1,3.7312]
[1727519917744,1.31532882,2680.2,2680.1,3.276889]
[1727519917905,1.3153142,2680.2,2680.1,3.276889]
[1727519918106,2.94524066,2680.2,2680.1,3.276889]
[1727519918310,1.37858281,2680.2,2680.1,3.276889]
[1727519918507,1.37855465,2680.2,2680.1,3.276889]
[1727519918822,1.70706885,2680.2,2680.1,3.276889]
[1727519919025,1.37857143,2680.2,2680.1,3.276889]
[1727519919618,1.31526725,2680.2,2680.1,3.276889]
[1727519920023,1.37853687,2680.2,2680.1,3.276889]
[1727519921618,1.31526713,2680.2,2680.1,3.276889]
[1727519925022,1.31526713,2680.2,2680.1,4.84405268]
[1727519930843,1.31526713,2680.2,2680.1,3.276889]
[1727519933252,1.31526713,2680.2,2680.1,7.84405268]
[1727519933456,0.92392822,2680.2,2680.1,9.76468295]
[1727519933834,0.78351722,2680.2,2680.1,9.76468295]
[1727519934175,1.17485613,2680.4,2680.2,3.73106]
[1727519934453,1.17485613,2680.4,2680.3,3.73092]
[1727519935963,1.17485613,2680.4,2680.1,9.76468295]
[1727519935964,1.17485613,2680.4,2680.1,5.62666295]
[1727519936174,1.56665785,2680.5,2680.1,8.20033268]
[1727519936175,0.7835362,2680.2,2680.1,8.20033268]
[1727519937039,0.7835362,2680.3,2680.2,3.73106]
[1727519937565,0.92397362,2680.3,2680.2,3.73106]
[1727519937769,0.92397001,2680.3,2680.2,3.73106]
[1727519939163,0.14042068,2680.3,2680.2,3.73106]
[1727519939364,1.31527681,2680.3,2680.2,3.73106]
[1727519940479,0.14042068,2680.3,2680.2,3.73106]
[1727519941479,1.31527681,2680.3,2680.2,3.73106]
[1727519945654,0.92438608,2680.3,2680.2,3.73106]
[1727519945987,0.14042068,2680.3,2680.2,3.73106]
[1727519946283,0.92437647,2680.3,2680.2,3.73106]
[1727519946496,0.14042068,2680.3,2680.2,3.73106]
[1727519946852,0.92438962,2680.3,2680.2,3.73106]
[1727519947171,0.14042068,2680.3,2680.2,3.73106]
[1727519947563,1.31527681,2680.3,2680.2,3.73106]
[1727519952389,0.92436846,2680.3,2680.2,7.50296]
[1727519952599,0.14042068,2680.3,2680.2,7.57757315]
[1727519953661,0.78394778,2680.4,2680.3,6.73092]
[1727519953873,0.78394778,2680.4,2680.3,10.24726442]
[1727519954080,0.78394778,2680.4,2680.3,10.17265626]
[1727519954402,0.78394778,2680.5,2680.3,10.17265626]
[1727519954695,0.78394778,2680.5,2680.4,5.29794368]
[1727519954860,0.78394778,2680.5,2680.4,7.29529967]
[1727519955261,0.78394778,2680.5,2680.4,8.11649967]
[1727519956359,0.91970369,2680.5,2680.4,8.11649967]
[1727519958394,0.13575591,2680.5,2680.4,8.11649967]
[1727519959071,0.13575591,2680.5,2680.3,3.73092]
[1727519959275,0.13575591,2680.5,2680.1,3.73116]
[1727519959276,1.709805,2680.4,2680.2,3.73102]
[1727519959505,1.567205,2680.3,2680.2,3.73102]
[1727519959675,2.94042221,2680.3,2680.2,3.73102]
[1727519966611,2.93932126,2680.3,2680.2,4.56372]
[1727519966816,0.13587693,2680.3,2680.2,4.56372]
[1727519967124,1.37211321,2680.3,2680.2,4.56372]
[1727519967817,1.37213927,2680.3,2680.2,5.54992437]
[1727519968117,1.31154298,2680.3,2680.2,5.54992437]
[1727519968492,1.31155343,2680.3,2680.2,5.54992437]
[1727519970307,1.31155343,2680.3,2680.2,5.27865469]
[1727519974013,0.13587693,2680.3,2680.2,5.27865469]
[1727519974221,1.31155343,2680.3,2680.2,5.27865469]
[1727519979130,0.13587693,2680.3,2680.2,8.27865469]
[1727519980201,0.91986992,2680.3,2680.2,8.27865469]
[1727519982317,0.91986992,2680.3,2680.2,7.29245032]
[1727519984034,0.13587693,2680.3,2680.2,7.29245032]
[1727519989136,0.91986992,2680.3,2680.2,7.29245032]
[1727519990796,0.13587693,2680.3,2680.2,7.29245032]
[1727519991808,0.13587693,2680.3,2680.2,7.36705918]
[1727519992038,0.13587693,2680.3,2680.2,8.63359747]
[1727519992238,1.1756765,2680.7,2680.6,3.7305]
[1727519992737,1.30707632,2680.7,2680.6,3.7305]
[1727519993844,1.30707632,2680.7,2680.6,3.229964]
[1727519994825,0.13139982,2680.7,2680.6,3.229964]
[1727519995197,0.78349698,2680.7,2680.6,3.229964]
[1727519995400,0.91499454,2680.7,2680.6,3.229964]
[1727519995603,0.13149756,2680.7,2680.6,3.229964]
[1727519995845,1.3046219,2680.8,2680.7,3.73036]
[1727519996043,1.3046219,2680.8,2680.7,5.29752368]
[1727519997940,1.36383246,2680.8,2680.7,5.29752368]
[1727519998145,1.30400734,2680.8,2680.7,5.29752368]
[1727519998502,1.30400734,2680.8,2680.7,6.60327645]
[1727519998730,0.1289454,2680.8,2680.7,6.60327645]
[1727519998930,0.1289454,2680.8,2680.7,5.29752368]
[1727519999306,1.04384155,2680.8,2680.7,5.29752368]
[1727519999509,1.43563672,2680.8,2680.7,5.29752368]
[1727519999712,1.57823672,2680.8,2680.7,3.73036]
[1727520000432,1.6379286,2680.8,2680.7,3.73036]
[1727520001255,1.57812681,2680.8,2680.7,3.73036]
[1727520001544,1.57810764,2680.8,2680.7,3.73036]
[1727520002051,2.08846869,2680.8,2680.5,3.73063]
[1727520002257,1.17501345,2680.6,2680.5,3.73055]
[1727520002408,2.10089781,2680.7,2680.6,3.7305]
[1727520002815,2.23243812,2680.7,2680.6,3.7305]
[1727520003048,3.46725881,2680.7,2680.6,3.7305]
[1727520003675,3.68427923,2680.7,2680.5,3.73063]
[1727520003829,2.94418435,2680.6,2680.4,3.73078]
[1727520004165,1.30636939,2680.5,2680.4,3.73078]
[1727520004375,0.13129597,2680.5,2680.4,3.73078]
[1727520004541,1.30639279,2680.5,2680.4,3.73078]
[1727520010991,0.13129597,2680.5,2680.4,3.73078]
[1727520011190,1.30672083,2680.5,2680.4,3.73078]
[1727520011396,1.366599,2680.5,2680.4,3.73078]
[1727520011808,1.30681484,2680.5,2680.4,3.73078]
[1727520012098,1.30681879,2680.5,2680.4,3.73078]
[1727520012296,1.36672163,2680.5,2680.4,3.73078]
[1727520014199,0.13129597,2680.5,2680.4,3.73078]
[1727520014406,1.30700983,2680.5,2680.4,3.73078]
[1727520014609,0.13129597,2680.5,2680.4,3.73078]
[1727520014788,1.69805963,2680.5,2680.4,3.73078]
[1727520014999,2.9336084,2680.5,2680.4,3.73078]
[1727520019005,2.09076854,2680.5,2680.4,3.73078]
[1727520019207,3.82988541,2680.5,2680.4,3.73078]
[1727520019783,1.87041284,2680.5,2680.4,3.73078]
[1727520021367,3.82988541,2680.5,2680.4,3.73078]
[1727520021800,1.87041284,2680.5,2680.4,3.73078]
[1727520022014,3.82988541,2680.5,2680.4,3.73078]
[1727520022432,1.87041284,2680.5,2680.4,3.73078]
[1727520022601,1.69902713,2680.5,2680.4,3.73078]
[1727520022993,2.9345759,2680.5,2680.4,3.73078]
[1727520024531,3.32651325,2680.5,2680.4,3.73078]
[1727520026507,1.36684474,2680.5,2680.4,3.73078]
[1727520027403,3.32651325,2680.5,2680.4,3.73078]
[1727520027655,1.36684474,2680.5,2680.4,3.73078]
[1727520028118,1.69890268,2680.5,2680.4,3.73078]
[1727520028302,0.13129597,2680.5,2680.4,3.73078]
[1727520028503,3.32635313,2680.5,2680.4,3.73078]
[1727520029034,1.36684474,2680.5,2680.4,3.73078]
[1727520030065,3.32635313,2680.5,2680.4,3.73078]
[1727520030346,2.93435545,2680.5,2680.4,3.73078]
[1727520030645,1.36684474,2680.5,2680.4,3.73078]
[1727520031221,1.69877903,2680.5,2680.4,3.73078]
[1727520031417,2.9343278,2680.5,2680.4,3.73078]
[1727520031622,2.93431798,2680.5,2680.4,3.73078]
[1727520032209,1.36684474,2680.5,2680.4,3.73078]
[1727520036455,3.32616753,2680.5,2680.4,3.73078]
[1727520036664,1.36684474,2680.5,2680.4,3.73078]
[1727520037555,3.32616753,2680.5,2680.4,3.73078]
[1727520037721,1.36684474,2680.5,2680.4,3.73078]
[1727520038254,3.32616753,2680.5,2680.4,3.73078]
[1727520038551,1.36684474,2680.5,2680.4,3.73078]
[1727520039757,3.32616753,2680.5,2680.4,3.73078]
[1727520039955,1.36684474,2680.5,2680.4,3.73078]
[1727520040161,2.93435938,2680.5,2680.4,3.73078]
[1727520046907,3.32616753,2680.5,2680.4,3.73078]
[1727520047250,3.32779152,2680.5,2680.4,3.73078]
[1727520052088,1.36684474,2680.5,2680.4,3.73078]
[1727520052391,2.09249308,2680.5,2680.4,3.73078]
[1727520052550,3.32804185,2680.5,2680.4,3.73078]
[1727520055784,1.36684474,2680.5,2680.4,3.73078]
[1727520055987,2.09271283,2680.5,2680.4,3.73078]
[1727520056158,3.3282616,2680.5,2680.4,3.73078]
[1727520056988,3.32831788,2680.5,2680.4,3.73078]
[1727520060909,3.32850582,2680.5,2680.4,3.73078]
[1727520061835,3.32850582,2680.5,2680.4,5.29794368]
[1727520065136,1.30820536,2680.5,2680.4,10.18264652]
[1727520065313,0.13129597,2680.5,2680.4,10.10803905]
[1727520065512,0.91570056,2680.5,2680.4,10.10803905]
[1727520067442,0.13129597,2680.5,2680.4,10.10803905]
[1727520067657,0.91570056,2680.5,2680.4,10.10803905]
[1727520069142,0.13129597,2680.5,2680.4,10.10803905]
[1727520069346,0.19147671,2680.5,2680.4,10.10803905]
[1727520071917,0.91334999,2680.8,2680.7,3.73036]
[1727520072228,0.1289454,2680.8,2680.7,7.54696]
[1727520081352,0.1289454,2680.8,2680.7,7.62155309]
[1727520081665,0.1289454,2680.8,2680.7,9.05186226]
[1727520081828,0.1289454,2680.8,2680.7,8.97726917]
[1727520085757,0.1289454,2680.8,2680.7,10.54443285]
[1727520104308,0.92700459,2681.8,2681.7,3.72897]
[1727520104604,0.1426,2681.8,2681.7,5.66903068]
[1727520104794,0.1426,2681.8,2681.7,5.29613368]
[1727520105192,0.92700459,2681.8,2681.7,5.29613368]
[1727520105507,0.92700459,2681.8,2681.7,3.72897]
[1727520105508,0.1426,2681.8,2681.7,3.72897]
[1727520106011,0.92421414,2681.8,2681.7,3.72897]
[1727520106174,0.1426,2681.8,2681.7,3.72897]
[1727520106897,1.31950939,2681.8,2681.7,3.72897]
[1727520107417,1.31950939,2681.8,2681.6,3.72911]
[1727520107418,0.1426,2681.7,2681.6,3.72911]
[1727520107584,1.17690939,2681.7,2681.6,3.72911]
[1727520107907,1.31950939,2681.7,2681.6,3.72911]
[1727520108471,0.1426,2681.6,2681.4,3.7293]
[1727520108791,0.92453582,2681.5,2681.4,6.7293]
[1727520109316,0.1426,2681.5,2681.4,3.7293]
[1727520109608,1.31550373,2681.5,2681.4,3.7293]
[1727520110170,0.1426,2681.5,2681.4,3.7293]
[1727520110372,1.31609911,2681.5,2681.4,3.7293]
[1727520111207,1.31608462,2681.5,2681.4,3.7293]
[1727520111609,0.1426,2681.5,2681.4,3.7293]
[1727520112115,1.38343237,2681.5,2681.4,3.7293]
[1727520112411,1.3163832,2681.5,2681.4,3.7293]
[1727520112712,1.3163686,2681.5,2681.4,3.7293]
[1727520112914,2.95279172,2681.5,2681.4,3.7293]
[1727520113115,1.31637253,2681.5,2681.4,3.7293]
[1727520113326,1.38372107,2681.5,2681.4,3.7293]
[1727520113613,2.95293359,2681.5,2681.4,3.7293]
[1727520113799,1.38372107,2681.5,2681.4,3.7293]
[1727520114002,3.47659602,2681.5,2681.4,3.7293]
[1727520114323,3.47289583,2681.5,2681.4,3.72939]
[1727520114546,1.9073835,2681.5,2681.4,3.72939]
[1727520114679,3.86368413,2681.5,2681.4,3.72939]
[1727520114878,3.3400217,2681.5,2681.4,3.72939]
[1727520117812,3.34147756,2681.5,2681.4,3.72939]
[1727520118021,0.1426,2681.4,2681.3,3.72951]
[1727520118318,0.1426,2681.3,2681.1,7.45946]
[1727520118517,2.10058192,2681.2,2681.1,7.45943]
[1727520118717,1.708964,2681.2,2681.1,7.45943]
[1727520119018,2.95009036,2681.2,2681.1,7.45943]
[1727520119323,2.95007795,2681.2,2681.1,7.45943]
[1727520121420,1.38372107,2681.2,2681.1,7.45943]
[1727520121934,0.1426,2681.1,2680.8,3.73013]
[1727520122134,1.70910139,2680.9,2680.8,3.73013]
[1727520122323,0.1426,2680.8,2680.6,3.73041]
[1727520122524,1.70890944,2680.7,2680.6,3.73041]
[1727520122954,2.95003051,2680.7,2680.6,3.73041]
[1727520123218,3.44084624,2680.7,2680.6,3.73041]
[1727520125559,1.8745368,2680.7,2680.6,3.73041]
[1727520125927,3.44084624,2680.7,2680.6,3.73041]
[1727520126126,1.8745368,2680.7,2680.6,3.73041]
[1727520126435,0.63341573,2680.7,2680.6,3.73041]
[1727520126638,1.8739361,2680.7,2680.6,3.73041]
[1727520127341,1.80644899,2680.7,2680.6,3.73041]
[1727520130248,0.63341573,2680.7,2680.6,3.73041]
[1727520130450,0.1426,2680.7,2680.6,3.73041]
[1727520130883,0.1426,2680.7,2680.6,3.048029]
[1727520131369,0.92412674,2680.7,2680.6,3.048029]
[1727520134270,0.1426,2680.7,2680.6,3.048029]
[1727520134718,0.92412674,2680.7,2680.6,3.048029]
[1727520135316,1.09664911,2680.7,2680.6,3.048029]
[1727520137132,0.31512237,2680.7,2680.6,3.048029]
[1727520137419,0.17252237,2680.7,2680.6,3.048029]
[1727520137622,0.78152674,2680.8,2680.6,3.048029]
[1727520137786,0.78152674,2680.8,2680.7,3.73036]
[1727520137982,0.99124274,2680.8,2680.7,3.73036]
[1727520139119,1.16379647,2680.8,2680.7,3.73036]
[1727520139836,0.38226973,2680.8,2680.7,3.73036]
[1727520140683,0.38226973,2680.8,2680.6,3.73049]
[1727520140882,0.17255373,2680.8,2680.7,3.73036]
[1727520147244,0.17255373,2680.8,2680.6,3.7304]
[1727520147437,0.95408047,2680.8,2680.6,3.7304]
[1727520149429,0.78152674,2680.7,2680.6,3.7304]
[1727520149594,0.95408047,2680.8,2680.6,3.7304]
[1727520149794,0.17260051,2680.7,2680.6,3.7304]
[1727520149994,0.95412725,2680.7,2680.6,3.7304]
[1727520153046,0.17260051,2680.7,2680.6,3.7304]
[1727520153335,1.17303326,2680.7,2680.6,3.7304]
[1727520153561,1.34556004,2680.7,2680.6,3.7304]
[1727520154163,0.17252678,2680.7,2680.6,3.7304]
[1727520154351,1.34556004,2680.7,2680.6,3.7304]
[1727520154538,1.17303326,2680.7,2680.6,3.7304]
[1727520154742,1.34556004,2680.7,2680.6,3.7304]
[1727520158022,0.17252678,2680.7,2680.6,5.243303]
[1727520158222,0.78252755,2681.0,2680.9,3.73009]
[1727520158430,0.78252755,2681.1,2681.0,6.72995]
[1727520158657,0.78252755,2681.2,2681.1,3.72981]
[1727520158826,1.56630944,2681.4,2681.3,3.72953]
[1727520158827,1.17303326,2681.4,2681.3,3.72953]
[1727520159043,1.56630944,2681.5,2681.4,3.72939]
[1727520159278,1.23869353,2681.5,2681.3,3.72953]
[1727520159430,1.56509359,2681.4,2681.3,3.72953]
[1727520159951,2.80378712,2681.4,2681.3,3.72953]
[1727520160628,1.56509359,2681.4,2681.3,3.72953]
[1727520160833,2.80378712,2681.4,2681.3,3.72953]
[1727520161635,1.56509359,2681.4,2681.3,3.72953]
[1727520161976,2.97081305,2681.4,2681.3,3.72953]
[1727520167966,3.46357377,2681.4,2680.7,3.0]
[1727520168138,0.78245214,2681.0,2680.9,3.72997]
[1727520168334,1.17367821,2681.1,2680.7,0.7985]
[1727520168538,0.16715211,2681.0,2680.9,3.73009]
[1727520168953,1.34083032,2681.0,2680.9,3.73009]
[1727520169183,0.16715211,2681.0,2680.9,3.73009]
[1727520169485,0.94963091,2681.0,2680.9,3.73009]
[1727520169692,0.94962712,2681.0,2680.9,3.73009]
[1727520169981,0.16715211,2681.0,2680.9,3.73009]
[1727520170588,1.34083032,2681.0,2680.9,3.73009]
[1727520170880,0.16715211,2681.0,2680.9,3.73009]
[1727520171095,1.34083032,2681.0,2680.9,3.73009]
[1727520171243,0.16715211,2681.0,2680.9,3.73009]
[1727520172076,1.34083032,2681.0,2680.9,3.73009]
[1727520172676,0.94964371,2681.0,2680.9,3.73009]
[1727520172863,0.94963904,2681.0,2680.9,3.73009]
[1727520173067,0.16715211,2681.0,2680.9,3.73009]
[1727520173443,1.34083032,2681.0,2680.9,3.73009]
[1727520173640,0.94962295,2681.0,2680.9,3.73009]
[1727520173845,0.94966224,2681.0,2680.9,3.73009]
[1727520174048,0.94964198,2681.0,2680.9,3.73009]
[1727520176100,0.16715211,2681.0,2680.9,3.73009]
[1727520176586,0.94967404,2681.0,2680.9,3.73009]
[1727520179151,0.94970253,2681.0,2680.9,3.73009]
[1727520179762,0.94971247,2681.0,2680.9,3.73009]
[1727520180446,0.16715211,2681.0,2680.9,5.45783737]
[1727520180646,0.16715211,2681.0,2680.9,8.45783737]
[1727520180886,0.78256036,2681.2,2681.1,3.72981]
[1727520181072,0.94415254,2681.2,2681.1,5.29697368]
[1727520184759,0.16159218,2681.2,2681.1,5.29697368]
[1727520185152,1.17367821,2681.3,2681.2,3.72967]
[1727520186903,0.61210376,2681.3,2681.0,3.72994]
[1727520187058,1.173847,2681.1,2681.0,3.72994]
[1727520187262,1.23763951,2681.1,2681.0,3.72994]
[1727520187577,1.17392249,2681.1,2681.0,3.72994]
[1727520188382,1.23768281,2681.1,2681.0,3.72994]
[1727520188554,2.80281214,2681.2,2681.0,3.72994]
[1727520188753,2.80281214,2681.2,2680.9,3.73008]
[1727520188754,1.39866654,2681.1,2680.9,3.73008]
[1727520189077,0.1426,2681.0,2680.8,3.73019]
[1727520189262,1.72638851,2680.9,2680.8,3.73019]
[1727520189455,2.96409949,2680.9,2680.8,3.73019]
[1727520191111,2.96409949,2680.9,2680.6,3.73037]
[1727520191340,1.17414844,2680.7,2680.6,3.73037]
[1727520191774,1.33485302,2680.7,2680.6,3.73037]
[1727520195874,0.9434902,2680.7,2680.6,3.73037]
[1727520196316,1.33485302,2680.7,2680.6,3.73037]
[1727520196612,0.16070458,2680.7,2680.6,3.73037]
[1727520196979,0.1426,2680.7,2680.4,3.73065]
[1727520197181,1.17427816,2680.6,2680.3,5.29799368]
[1727520197375,1.23758408,2680.6,2680.5,3.73064]
[1727520197881,2.80311497,2680.6,2680.5,3.73064]
[1727520198082,1.17420996,2680.6,2680.5,3.73064]
[1727520198295,1.23698523,2680.6,2680.5,3.73057]
[1727520198500,1.17425973,2680.6,2680.5,3.73057]
[1727520200532,1.3332453,2680.6,2680.5,3.73057]
[1727520202090,2.44488248,2680.6,2680.1,6.73114]
[1727520202404,0.782782,2680.3,2680.2,3.73106]
[1727520202939,0.94175513,2680.3,2680.2,3.73106]
[1727520203498,0.94175513,2680.3,2680.1,3.73114]
[1727520203708,0.782782,2680.2,2680.1,3.73114]
[1727520204212,0.15881209,2680.2,2680.1,7.46228]
[1727520204419,0.15881209,2680.2,2680.1,3.73114]
[1727520204606,0.782782,2680.3,2680.1,7.46226]
[1727520204807,0.15881209,2680.2,2680.1,3.73112]
[1727520205145,0.782782,2680.3,2680.1,3.73112]
[1727520205314,0.15881209,2680.2,2680.1,3.7312]
[1727520205517,0.782782,2680.3,2680.0,5.29849368]
[1727520205717,0.782782,2680.3,2680.2,3.73106]
[1727520207744,0.94020623,2680.3,2680.2,3.73106]
[1727520216514,1.32245724,2680.3,2680.0,3.73133]
[1727520216751,0.782782,2680.2,2680.0,3.73133]
[1727520217260,0.15728019,2680.1,2680.0,3.73133]
[1727520218537,0.94006219,2680.1,2680.0,3.73133]
[1727520218832,1.18971081,2680.1,2679.9,3.73148]
[1727520221734,1.18971081,2680.1,2679.8,3.73151]
[1727520221940,1.33231081,2680.1,2679.8,3.73151]
[1727520222258,0.25064838,2680.0,2679.8,3.73151]
[1727520222572,0.15713612,2679.9,2679.8,3.73151]
[1727520222929,1.17503062,2680.1,2679.8,3.73151]
[1727520223168,0.15714906,2680.0,2679.8,3.73151]
[1727520225338,0.15714906,2680.0,2679.9,3.73148]
[1727520227974,0.40778433,2680.0,2679.9,3.73148]
[1727520228180,1.19056633,2680.0,2679.9,3.73148]
[1727520229740,1.19056633,2680.0,2679.9,3.050339]
[1727520230784,1.19056633,2680.0,2679.8,3.73161]
[1727520231086,0.782782,2679.9,2679.8,3.73161]
[1727520231488,0.93991812,2679.9,2679.8,3.73161]
[1727520233191,0.15713612,2679.9,2679.8,3.73161]
[1727520234461,1.33130912,2679.9,2679.8,3.73161]
[1727520235287,0.15713612,2679.9,2679.8,3.73161]
[1727520235489,1.33130912,2679.9,2679.8,3.73161]
[1727520240202,1.66021798,2679.9,2679.5,0.7902]
[1727520240353,1.1744789,2679.7,2679.6,3.73182]
[1727520240754,1.33118177,2679.7,2679.6,3.73182]
[1727520250467,1.33118177,2679.7,2679.6,6.05298368]
[1727520250673,0.15670287,2679.7,2679.6,7.03148405]
[1727520250873,0.78321769,2679.7,2679.6,7.03148405]
[1727520251522,0.9396516,2679.7,2679.6,7.03148405]
[1727520254403,0.9396516,2679.7,2679.6,6.05298368]
[1727520254943,0.15643391,2679.7,2679.6,6.05298368]
[1727520255221,1.1744789,2679.8,2679.6,6.05298368]
[1727520255514,1.1744789,2679.8,2679.7,3.73176]
[1727520258791,1.33092575,2679.8,2679.7,3.73176]
[1727520259523,1.33214331,2679.8,2679.7,3.73176]
[1727520259723,1.39235451,2679.8,2679.7,3.73176]
[1727520261220,2.9578854,2679.8,2679.7,3.73176]
[1727520265929,1.3328536,2679.8,2679.7,3.73176]
[1727520266104,2.95734024,2679.8,2679.7,3.73176]
[1727520266920,0.15644685,2679.8,2679.7,4.53366]
[1727520267087,1.33287501,2679.8,2679.7,5.06308737]
[1727520267518,0.15644685,2679.8,2679.7,5.06308737]
[1727520267818,0.94070658,2679.8,2679.7,8.06308737]
[1727520269619,0.15644685,2679.8,2679.7,8.06308737]
[1727520269786,0.94070658,2679.8,2679.7,8.06308737]
[1727520270005,0.15644685,2679.8,2679.7,8.06308737]
[1727520271348,0.78425973,2680.1,2679.7,8.06308737]
[1727520271506,0.78425973,2680.1,2680.0,6.06590368]
[1727520272349,1.17642816,2680.3,2680.1,3.7312]
[1727520272350,0.78425973,2680.2,2680.1,3.7312]
[1727520272560,0.78425973,2680.2,2680.1,5.29836368]
[1727520272767,0.78425973,2680.2,2680.1,6.65122005]
[1727520274644,0.94124966,2680.2,2680.1,6.65122005]
[1727520278219,0.15698993,2680.2,2680.1,6.65122005]
[1727520278429,0.78425973,2680.3,2680.2,3.73106]
[1727520280110,1.17642816,2680.4,2680.3,3.73092]
[1727520280519,1.17642816,2680.4,2680.3,5.29808368]
[1727520281956,1.33343342,2680.4,2680.3,5.29808368]
[1727520282253,0.15700526,2680.4,2680.3,7.02549605]
[1727520282416,0.78274459,2680.6,2680.5,3.73064]
[1727520282618,0.78274459,2680.6,2680.5,5.29780368]
[1727520283716,0.78274459,2680.8,2680.5,2.39166368]
[1727520284050,0.78274459,2680.8,2680.7,5.29752368]
[1727520284553,0.78218114,2680.8,2680.7,3.73036]
[1727520284726,1.67144218,2680.8,2680.5,3.73061]
[1727520284924,1.17642816,2680.7,2680.5,3.73061]
[1727520285182,0.78224938,2680.6,2680.5,3.73061]
[1727520285382,0.9398483,2680.6,2680.5,3.73061]
[1727520285581,0.15759892,2680.6,2680.5,3.73061]
[1727520286003,0.93977324,2680.6,2680.5,3.73061]
[1727520286231,0.93972715,2680.6,2680.5,3.73061]
[1727520289302,0.93972715,2680.6,2680.4,3.73069]
[1727520289303,1.7516971,2680.6,2680.4,3.73069]
[1727520289617,1.17642816,2680.5,2680.4,3.73069]
[1727520289817,0.57526894,2680.6,2680.2,5.29813368]
[1727520289818,1.7516971,2680.6,2680.2,5.29813368]
[1727520290116,0.93968263,2680.5,2680.4,3.73078]
[1727520290323,0.93969048,2680.5,2680.4,3.73078]
[1727520290478,0.93968982,2680.5,2680.4,5.29794368]
[1727520290818,0.15758599,2680.5,2680.4,6.09344368]
[1727520294024,0.93968982,2680.5,2680.4,6.09344368]
[1727520294819,0.93968982,2680.5,2680.4,4.52628]
[1727520295220,0.15758599,2680.5,2680.4,4.52628]
[1727520295625,0.93968982,2680.5,2680.4,3.73078]
[1727520296731,0.93968982,2680.5,2680.2,0.8142]
[1727520296895,0.99371563,2680.4,2680.3,3.73092]
[1727520297095,0.9344301,2680.4,2680.3,3.73092]
[1727520297314,1.32875443,2680.4,2680.2,3.73105]
[1727520297516,0.78236098,2680.3,2680.2,3.73097]
[1727520297908,0.93462494,2680.3,2680.2,3.73097]
[1727520298499,0.15226396,2680.3,2680.2,3.73097]
[1727520299041,0.93462494,2680.3,2680.2,3.73097]
[1727520300407,0.15226396,2680.3,2680.2,5.29813368]
[1727520301715,0.15226396,2680.3,2680.2,6.10813368]
[1727520301913,1.17642816,2680.6,2680.2,6.10813368]
[1727520301914,0.78236098,2680.4,2680.3,3.73092]
[1727520302212,0.78252912,2680.5,2680.4,3.73078]
[1727520302413,1.17642816,2680.6,2680.5,3.73064]
[1727520302830,1.24317877,2680.6,2680.5,3.73064]
[1727520303142,1.17385237,2680.6,2680.5,3.73064]
[1727520304132,1.39565145,2680.6,2680.5,3.73064]
[1727520305737,1.32644136,2680.6,2680.5,3.73064]
[1727520306057,2.96130466,2680.6,2680.5,3.73064]
[1727520307080,1.39577377,2680.6,2680.5,3.73064]
[1727520307369,2.96130466,2680.6,2680.5,3.73064]
[1727520307600,1.39577377,2680.6,2680.5,3.73064]
[1727520307865,2.96130466,2680.6,2680.5,3.73064]
[1727520308939,1.39577377,2680.6,2680.5,3.73064]
[1727520309166,2.96130466,2680.6,2680.5,3.73064]
[1727520311172,1.39577377,2680.6,2680.5,3.73064]
[1727520311682,1.71943221,2680.6,2680.5,3.73064]
[1727520312086,2.96288468,2680.6,2680.5,3.73064]